fUSD/lending_fUSD_20260527
["ID","MTS","AMOUNT","RATE_DAILY","PERIOD"]
[423147525,1779892295000,-160.530931,0.00039312,14]
[423147527,1779892295000,-500.0,0.00039315,120]
[423147519,1779892295000,-151.0,0.000393,120]
[423147529,1779892295000,-500.0,0.00039315,120]
[423147532,1779892295000,-213.15449816,0.00039315,120]
[423147544,1779892295000,-500.0,0.00039315,120]
[423147537,1779892295000,-500.0,0.00039315,120]
[423147550,1779892295000,-2850.27,0.00039315,120]
[423147541,1779892295000,-500.0,0.00039315,120]
[423147540,1779892295000,-500.0,0.00039315,120]
[423147556,1779892295000,-2850.27,0.00039315,120]
[423147535,1779892295000,-165.24769759,0.00039315,120]
[423147531,1779892295000,-500.0,0.00039315,120]
[423147570,1779892295000,-2315.18,0.00039315,120]
[423147574,1779892295000,-2315.18,0.00039315,120]
[423147608,1779892295000,-3465.18,0.00039315,120]
[423147603,1779892295000,-3465.18,0.00039315,120]
[423147607,1779892295000,-3465.18,0.00039315,120]
[423147602,1779892295000,-3465.18,0.00039315,120]
[423147600,1779892295000,-3465.18,0.00039315,120]
[423147606,1779892295000,-3465.18,0.00039315,120]
[423147605,1779892295000,-3465.18,0.00039315,120]
[423147611,1779892295000,-3465.18,0.00039315,120]
[423147610,1779892295000,-3465.18,0.00039315,120]
[423147612,1779892295000,-3465.18,0.00039315,120]
[423147614,1779892295000,-3465.18,0.00039315,120]
[423147598,1779892295000,-3465.18,0.00039315,120]
[423147615,1779892295000,-3465.18,0.00039315,120]
[423147616,1779892295000,-3465.18,0.00039315,120]
[423147619,1779892295000,-4157.19,0.00039315,120]
[423147621,1779892295000,-4157.19,0.00039315,120]
[423147618,1779892295000,-3465.3576007,0.00039315,120]
[423147620,1779892295000,-4157.19,0.00039315,120]
[423147623,1779892295000,-4157.19,0.00039315,120]
[423147622,1779892295000,-4157.19,0.00039315,120]
[423147625,1779892295000,-4157.19,0.00039315,120]
[423147624,1779892295000,-4157.19,0.00039315,120]
[423147626,1779892295000,-4157.19,0.00039315,120]
[423147568,1779892295000,-2850.27,0.00039315,120]
[423147617,1779892295000,-3465.18,0.00039315,120]
[423147609,1779892295000,-3465.18,0.00039315,120]
[423147613,1779892295000,-3465.18,0.00039315,120]
[423147599,1779892295000,-3465.18,0.00039315,120]
[423147575,1779892295000,-2315.18,0.00039315,120]
[423147604,1779892295000,-3465.18,0.00039315,120]
[423147577,1779892295000,-2315.18,0.00039315,120]
[423147578,1779892295000,-2315.18,0.00039315,120]
[423147576,1779892295000,-2315.18,0.00039315,120]
[423147579,1779892295000,-2315.18,0.00039315,120]
[423147581,1779892295000,-2315.18,0.00039315,120]
[423147582,1779892295000,-2315.18,0.00039315,120]
[423147580,1779892295000,-2315.18,0.00039315,120]
[423147583,1779892295000,-2315.18,0.00039315,120]
[423147586,1779892295000,-2315.18,0.00039315,120]
[423147596,1779892295000,-3465.18,0.00039315,120]
[423147584,1779892295000,-2315.18,0.00039315,120]
[423147597,1779892295000,-3465.18,0.00039315,120]
[423147601,1779892295000,-3465.18,0.00039315,120]
[423147585,1779892295000,-2315.18,0.00039315,120]
[423147593,1779892295000,-2315.29134604,0.00039315,120]
[423147592,1779892295000,-2315.18,0.00039315,120]
[423147595,1779892295000,-3465.18,0.00039315,120]
[423147594,1779892295000,-242.223504,0.00039315,120]
[423147588,1779892295000,-2315.18,0.00039315,120]
[423147590,1779892295000,-2315.18,0.00039315,120]
[423147589,1779892295000,-2315.18,0.00039315,120]
[423147587,1779892295000,-2315.18,0.00039315,120]
[423147591,1779892295000,-2315.18,0.00039315,120]
[423147668,1779892296000,-3668.89,0.00039315,120]
[423147662,1779892296000,-3668.89,0.00039315,120]
[423147665,1779892296000,-3668.89,0.00039315,120]
[423147664,1779892296000,-3668.89,0.00039315,120]
[423147660,1779892296000,-3668.89,0.00039315,120]
[423147658,1779892296000,-3668.89,0.00039315,120]
[423147666,1779892296000,-3668.89,0.00039315,120]
[423147661,1779892296000,-3668.89,0.00039315,120]
[423147659,1779892296000,-3668.89,0.00039315,120]
[423147663,1779892296000,-3668.89,0.00039315,120]
[423147669,1779892296000,-3669.12340154,0.00039315,120]
[423147667,1779892296000,-3668.89,0.00039315,120]
[423147670,1779892296000,-504.51035548,0.00039315,120]
[423147681,1779892296000,-4086.26,0.00039315,120]
[423147671,1779892296000,-4086.26,0.00039315,120]
[423147674,1779892296000,-4086.26,0.00039315,120]
[423147679,1779892296000,-4086.26,0.00039315,120]
[423147675,1779892296000,-4086.26,0.00039315,120]
[423147673,1779892296000,-4086.26,0.00039315,120]
[423147676,1779892296000,-4086.26,0.00039315,120]
[423147678,1779892296000,-4086.26,0.00039315,120]
[423147677,1779892296000,-4086.26,0.00039315,120]
[423147680,1779892296000,-4086.26,0.00039315,120]
[423147682,1779892296000,-4086.26,0.00039315,120]
[423147686,1779892296000,-4086.26,0.00039315,120]
[423147657,1779892296000,-3668.89,0.00039315,120]
[423147672,1779892296000,-4086.26,0.00039315,120]
[423147656,1779892296000,-3668.89,0.00039315,120]
[423147627,1779892296000,-4157.19,0.00039315,120]
[423147651,1779892296000,-3668.89,0.00039315,120]
[423147685,1779892296000,-4086.26,0.00039315,120]
[423147632,1779892296000,-4157.19,0.00039315,120]
[423147631,1779892296000,-4157.19,0.00039315,120]
[423147628,1779892296000,-4157.19,0.00039315,120]
[423147630,1779892296000,-4157.19,0.00039315,120]
[423147629,1779892296000,-4157.19,0.00039315,120]
[423147633,1779892296000,-4157.19,0.00039315,120]
[423147635,1779892296000,-4157.19,0.00039315,120]
[423147637,1779892296000,-4157.19,0.00039315,120]
[423147642,1779892296000,-4157.19,0.00039315,120]
[423147634,1779892296000,-500.0,0.00039315,120]
[423147636,1779892296000,-500.0,0.00039315,120]
[423147644,1779892296000,-4157.19,0.00039315,120]
[423147643,1779892296000,-4157.19,0.00039315,120]
[423147641,1779892296000,-4157.19,0.00039315,120]
[423147639,1779892296000,-4157.19,0.00039315,120]
[423147638,1779892296000,-224.84,0.00039315,120]
[423147640,1779892296000,-4157.19,0.00039315,120]
[423147645,1779892296000,-4157.32192135,0.00039315,120]
[423147655,1779892296000,-3668.89,0.00039315,120]
[423147646,1779892296000,-3668.89,0.00039315,120]
[423147652,1779892296000,-3668.89,0.00039315,120]
[423147653,1779892296000,-3668.89,0.00039315,120]
[423147647,1779892296000,-3668.89,0.00039315,120]
[423147650,1779892296000,-3668.89,0.00039315,120]
[423147654,1779892296000,-3668.89,0.00039315,120]
[423147648,1779892296000,-3668.89,0.00039315,120]
[423147649,1779892296000,-3668.89,0.00039315,120]
[423147683,1779892296000,-4086.26,0.00039315,120]
[423147743,1779892296000,-2152.87,0.00039315,120]
[423147687,1779892296000,-4086.26,0.00039315,120]
[423147718,1779892296000,-4183.98981802,0.00039315,120]
[423147720,1779892296000,-187.91783499,0.00039315,120]
[423147727,1779892296000,-2152.87,0.00039315,120]
[423147722,1779892296000,-500.0,0.00039315,120]
[423147721,1779892296000,-500.0,0.00039315,120]
[423147723,1779892296000,-482.0497849,0.00039315,120]
[423147725,1779892296000,-500.0,0.00039315,2]
[423147726,1779892296000,-527.03,0.00039315,2]
[423147724,1779892296000,-500.0,0.00039315,2]
[423147728,1779892296000,-2152.87,0.00039315,120]
[423147729,1779892296000,-500.0,0.00039315,120]
[423147730,1779892296000,-2152.87,0.00039315,120]
[423147716,1779892296000,-4183.84,0.00039315,120]
[423147733,1779892296000,-548.51604584,0.00039315,120]
[423147737,1779892296000,-2152.87,0.00039315,120]
[423147734,1779892296000,-2152.87,0.00039315,120]
[423147739,1779892296000,-2152.87,0.00039315,120]
[423147732,1779892296000,-2152.87,0.00039315,120]
[423147740,1779892296000,-2152.87,0.00039315,120]
[423147736,1779892296000,-2152.87,0.00039315,120]
[423147738,1779892296000,-2152.87,0.00039315,120]
[423147742,1779892296000,-2152.87,0.00039315,120]
[423147741,1779892296000,-2152.87,0.00039315,120]
[423147745,1779892296000,-2152.87,0.00039315,120]
[423147744,1779892296000,-2152.87,0.00039315,120]
[423147684,1779892296000,-4086.26,0.00039315,120]
[423147735,1779892296000,-2152.87,0.00039315,120]
[423147719,1779892296000,-576.4167115,0.00039315,120]
[423147731,1779892296000,-500.0,0.00039315,120]
[423147715,1779892296000,-4183.84,0.00039315,120]
[423147688,1779892296000,-4086.26,0.00039315,120]
[423147717,1779892296000,-4183.84,0.00039315,120]
[423147690,1779892296000,-4086.26,0.00039315,120]
[423147689,1779892296000,-4086.26,0.00039315,120]
[423147691,1779892296000,-4086.26,0.00039315,120]
[423147693,1779892296000,-4086.26,0.00039315,120]
[423147701,1779892296000,-4183.84,0.00039315,120]
[423147700,1779892296000,-4183.84,0.00039315,120]
[423147702,1779892296000,-4183.84,0.00039315,120]
[423147692,1779892296000,-4086.26,0.00039315,120]
[423147703,1779892296000,-4183.84,0.00039315,120]
[423147694,1779892296000,-4086.2844018,0.00039315,120]
[423147699,1779892296000,-4183.84,0.00039315,120]
[423147695,1779892296000,-4183.84,0.00039315,120]
[423147704,1779892296000,-4183.84,0.00039315,120]
[423147714,1779892296000,-4183.84,0.00039315,120]
[423147698,1779892296000,-4183.84,0.00039315,120]
[423147712,1779892296000,-4183.84,0.00039315,120]
[423147713,1779892296000,-4183.84,0.00039315,120]
[423147708,1779892296000,-4183.84,0.00039315,120]
[423147709,1779892296000,-4183.84,0.00039315,120]
[423147711,1779892296000,-4183.84,0.00039315,120]
[423147706,1779892296000,-4183.84,0.00039315,120]
[423147705,1779892296000,-4183.84,0.00039315,120]
[423147697,1779892296000,-4183.84,0.00039315,120]
[423147696,1779892296000,-4183.84,0.00039315,120]
[423147707,1779892296000,-4183.84,0.00039315,120]
[423147710,1779892296000,-4183.84,0.00039315,120]
[423147790,1779892297000,-2878.07,0.00039315,120]
[423147788,1779892297000,-2878.07,0.00039315,120]
[423147786,1779892297000,-2878.07,0.00039315,120]
[423147782,1779892297000,-2878.07,0.00039315,120]
[423147784,1779892297000,-2878.07,0.00039315,120]
[423147776,1779892297000,-3390.61,0.00039315,120]
[423147783,1779892297000,-2878.07,0.00039315,120]
[423147780,1779892297000,-2878.07,0.00039315,120]
[423147781,1779892297000,-2878.07,0.00039315,120]
[423147779,1779892297000,-3390.76568818,0.00039315,120]
[423147785,1779892297000,-2878.07,0.00039315,120]
[423147787,1779892297000,-2878.07,0.00039315,120]
[423147789,1779892297000,-2878.07,0.00039315,120]
[423147804,1779892297000,-343.68639488,0.00039315,120]
[423147802,1779892297000,-2878.07,0.00039315,120]
[423147803,1779892297000,-2878.12796421,0.00039315,120]
[423147794,1779892297000,-2878.07,0.00039315,120]
[423147791,1779892297000,-2878.07,0.00039315,120]
[423147793,1779892297000,-2878.07,0.00039315,120]
[423147795,1779892297000,-2878.07,0.00039315,120]
[423147799,1779892297000,-2878.07,0.00039315,120]
[423147800,1779892297000,-2878.07,0.00039315,120]
[423147796,1779892297000,-2878.07,0.00039315,120]
[423147801,1779892297000,-2878.07,0.00039315,120]
[423147798,1779892297000,-2878.07,0.00039315,120]
[423147797,1779892297000,-2878.07,0.00039315,120]
[423147773,1779892297000,-3390.61,0.00039315,120]
[423147792,1779892297000,-2878.07,0.00039315,120]
[423147774,1779892297000,-3390.61,0.00039315,120]
[423147749,1779892297000,-2152.87,0.00039315,120]
[423147770,1779892297000,-3390.61,0.00039315,120]
[423147748,1779892297000,-2152.87,0.00039315,120]
[423147806,1779892297000,-3485.84,0.00039315,120]
[423147750,1779892297000,-2152.87,0.00039315,120]
[423147751,1779892297000,-2152.87,0.00039315,120]
[423147752,1779892297000,-2152.87,0.00039315,120]
[423147746,1779892297000,-2152.87,0.00039315,120]
[423147747,1779892297000,-2152.87,0.00039315,120]
[423147753,1779892297000,-2152.9306827,0.00039315,120]
[423147757,1779892297000,-3390.61,0.00039315,120]
[423147758,1779892297000,-3390.61,0.00039315,120]
[423147763,1779892297000,-3390.61,0.00039315,120]
[423147760,1779892297000,-3390.61,0.00039315,120]
[423147754,1779892297000,-500.0,0.00039315,7]
[423147775,1779892297000,-3390.61,0.00039315,120]
[423147762,1779892297000,-3390.61,0.00039315,120]
[423147761,1779892297000,-3390.61,0.00039315,120]
[423147764,1779892297000,-3390.61,0.00039315,120]
[423147765,1779892297000,-3390.61,0.00039315,120]
[423147759,1779892297000,-3390.61,0.00039315,120]
[423147756,1779892297000,-3390.61,0.00039315,120]
[423147766,1779892297000,-3390.61,0.00039315,120]
[423147777,1779892297000,-3390.61,0.00039315,120]
[423147767,1779892297000,-3390.61,0.00039315,120]
[423147768,1779892297000,-3390.61,0.00039315,120]
[423147772,1779892297000,-3390.61,0.00039315,120]
[423147778,1779892297000,-3390.61,0.00039315,120]
[423147771,1779892297000,-3390.61,0.00039315,120]
[423147769,1779892297000,-3390.61,0.00039315,120]
[423147755,1779892297000,-344.88843695,0.00039315,7]
[423147808,1779892297000,-3485.84,0.00039315,120]
[423147812,1779892297000,-3485.84,0.00039315,120]
[423147810,1779892297000,-3485.84,0.00039315,120]
[423147838,1779892297000,-2938.1,0.00039315,120]
[423147844,1779892297000,-2938.1,0.00039315,120]
[423147851,1779892297000,-2938.1,0.00039315,120]
[423147843,1779892297000,-2938.1,0.00039315,120]
[423147845,1779892297000,-2938.1,0.00039315,120]
[423147849,1779892297000,-2938.1,0.00039315,120]
[423147846,1779892297000,-2938.1,0.00039315,120]
[423147847,1779892297000,-2938.1,0.00039315,120]
[423147848,1779892297000,-2938.1,0.00039315,120]
[423147850,1779892297000,-2938.1,0.00039315,120]
[423147853,1779892297000,-500.0,0.00039315,120]
[423147852,1779892297000,-2938.22,0.00039315,120]
[423147855,1779892297000,-500.0,0.00039315,120]
[423147854,1779892297000,-500.0,0.00039315,120]
[423147856,1779892297000,-500.0,0.00039315,120]
[423147858,1779892297000,-500.0,0.00039315,120]
[423147861,1779892297000,-562.80457001,0.00039315,120]
[423147815,1779892297000,-3485.84,0.00039315,120]
[423147865,1779892297000,-800.0,0.00039364,14]
[423147864,1779892297000,-3542.43710189,0.00039335,2]
[423147857,1779892297000,-500.0,0.00039315,120]
[423147862,1779892297000,-575.73,0.00039329,120]
[423147859,1779892297000,-500.0,0.00039315,120]
[423147863,1779892297000,-381.768441,0.00039332,2]
[423147867,1779892297000,-800.0,0.00039364,14]
[423147866,1779892297000,-800.0,0.00039364,14]
[423147868,1779892297000,-800.0,0.00039364,14]
[423147839,1779892297000,-2938.1,0.00039315,120]
[423147836,1779892297000,-2938.1,0.00039315,120]
[423147860,1779892297000,-499.49499999,0.00039315,120]
[423147834,1779892297000,-2938.1,0.00039315,120]
[423147840,1779892297000,-2938.1,0.00039315,120]
[423147805,1779892297000,-3485.84,0.00039315,120]
[423147807,1779892297000,-3485.84,0.00039315,120]
[423147811,1779892297000,-3485.84,0.00039315,120]
[423147809,1779892297000,-3485.84,0.00039315,120]
[423147814,1779892297000,-3485.84,0.00039315,120]
[423147817,1779892297000,-3485.84,0.00039315,120]
[423147829,1779892297000,-2938.1,0.00039315,120]
[423147827,1779892297000,-2938.1,0.00039315,120]
[423147828,1779892297000,-3485.84,0.00039315,120]
[423147819,1779892297000,-3485.84,0.00039315,120]
[423147816,1779892297000,-3485.84,0.00039315,120]
[423147818,1779892297000,-3485.84,0.00039315,120]
[423147823,1779892297000,-3485.84,0.00039315,120]
[423147813,1779892297000,-3485.84,0.00039315,120]
[423147820,1779892297000,-3485.84,0.00039315,120]
[423147837,1779892297000,-2938.1,0.00039315,120]
[423147826,1779892297000,-3485.84,0.00039315,120]
[423147835,1779892297000,-2938.1,0.00039315,120]
[423147841,1779892297000,-2938.1,0.00039315,120]
[423147833,1779892297000,-3485.89711905,0.00039315,120]
[423147830,1779892297000,-3485.84,0.00039315,120]
[423147842,1779892297000,-2938.1,0.00039315,120]
[423147831,1779892297000,-2938.1,0.00039315,120]
[423147822,1779892297000,-3485.84,0.00039315,120]
[423147821,1779892297000,-3485.84,0.00039315,120]
[423147824,1779892297000,-3485.84,0.00039315,120]
[423147825,1779892297000,-2938.1,0.00039315,120]
[423147832,1779892297000,-2938.1,0.00039315,120]
[423147903,1779892298000,-160.530931,0.00039443,14]
[423147895,1779892298000,-500.0,0.00039438,60]
[423147893,1779892298000,-3542.43710189,0.00039437,2]
[423147896,1779892298000,-1000.0,0.00039438,120]
[423147904,1779892298000,-160.530931,0.00039443,14]
[423147892,1779892298000,-625083.9744524,0.0003943,3]
[423147894,1779892298000,-500.0,0.00039438,60]
[423147897,1779892298000,-161.71,0.0003944,120]
[423147905,1779892298000,-160.530931,0.00039443,14]
[423147900,1779892298000,-160.530931,0.00039443,14]
[423147898,1779892298000,-579.76,0.00039441,2]
[423147899,1779892298000,-160.530931,0.00039442,14]
[423147901,1779892298000,-160.530931,0.00039443,14]
[423147907,1779892298000,-160.530931,0.00039443,14]
[423147906,1779892298000,-160.530931,0.00039443,14]
[423147910,1779892298000,-160.53092975,0.00039443,14]
[423147884,1779892298000,-3114.57226564,0.00039415,2]
[423147902,1779892298000,-160.530931,0.00039443,14]
[423147887,1779892298000,-1280.88388877,0.00039422,30]
[423147869,1779892298000,-800.0,0.00039364,14]
[423147885,1779892298000,-3542.43710189,0.00039417,2]
[423147909,1779892298000,-160.530931,0.00039443,14]
[423147877,1779892298000,-1932.48,0.00039392,2]
[423147878,1779892298000,-3864.98,0.00039392,2]
[423147872,1779892298000,-800.0,0.00039364,14]
[423147873,1779892298000,-3542.43710189,0.00039368,2]
[423147874,1779892298000,-575.73,0.00039379,120]
[423147870,1779892298000,-800.0,0.00039364,14]
[423147876,1779892298000,-4995.0,0.00039392,2]
[423147886,1779892298000,-1865.36488656,0.00039422,30]
[423147875,1779892298000,-4995.0,0.00039392,2]
[423147880,1779892298000,-614.01137292,0.000394,2]
[423147888,1779892298000,-3542.43710189,0.00039424,2]
[423147890,1779892298000,-160.530931,0.00039427,14]
[423147889,1779892298000,-160.530931,0.00039427,14]
[423147879,1779892298000,-200.0,0.000394,16]
[423147881,1779892298000,-1934.38338736,0.00039404,30]
[423147891,1779892298000,-575.73,0.00039429,120]
[423147882,1779892298000,-1328.27659265,0.00039404,30]
[423147871,1779892298000,-800.0,0.00039364,14]
[423147908,1779892298000,-160.530931,0.00039443,14]
[423147883,1779892298000,-1155.60166761,0.00039407,2]
[423147912,1779892298000,-157.90300786,0.00039445,5]
[423147935,1779892298000,-221.09502105,0.0003947,120]
[423147933,1779892298000,-1933.98040651,0.00039469,120]
[423147931,1779892298000,-1191.11104074,0.00039461,30]
[423147937,1779892298000,-2400.0,0.000395,120]
[423147939,1779892298000,-189.0,0.00039507,120]
[423147940,1779892298000,-1040.0,0.00039507,120]
[423147941,1779892298000,-190.0,0.00039507,120]
[423147943,1779892298000,-4309.17,0.00039507,90]
[423147934,1779892298000,-214.88671183,0.00039469,120]
[423147942,1779892298000,-159.0,0.00039507,120]
[423147947,1779892298000,-50000.0,0.00039527,54]
[423147938,1779892298000,-298.0,0.00039501,10]
[423147948,1779892298000,-50000.0,0.00039527,55]
[423147945,1779892298000,-50000.0,0.00039527,52]
[423147944,1779892298000,-164.17,0.00039507,2]
[423147949,1779892298000,-8703747.92487169,0.00039528,30]
[423147950,1779892298000,-187.442691,0.00029538,7]
[423147951,1779892298000,-140.65938955,0.00039528,30]
[423147946,1779892298000,-50000.0,0.00039527,53]
[423147930,1779892298000,-1734.62772924,0.00039461,30]
[423147911,1779892298000,-250.0,0.00039445,7]
[423147932,1779892298000,-150.0,0.00039462,6]
[423147952,1779892298000,-300.0,0.00035586,2]
[423147913,1779892298000,-970.48031903,0.00039446,120]
[423147916,1779892298000,-183.0,0.00039449,120]
[423147917,1779892298000,-158.0,0.00039449,120]
[423147915,1779892298000,-150.31257,0.00039448,33]
[423147922,1779892298000,-496.85819397,0.00039449,120]
[423147921,1779892298000,-170.0,0.00039449,120]
[423147919,1779892298000,-254.0,0.00039449,120]
[423147924,1779892298000,-364.0,0.00039449,120]
[423147914,1779892298000,-350.0,0.00039448,2]
[423147920,1779892298000,-471.0,0.00039449,120]
[423147923,1779892298000,-157.0,0.00039449,120]
[423147926,1779892298000,-1798.80895522,0.0003945,30]
[423147936,1779892298000,-575.73,0.00039479,120]
[423147925,1779892298000,-218.0,0.00039449,120]
[423147927,1779892298000,-1235.18214925,0.0003945,30]
[423147928,1779892298000,-1549.0,0.00039452,30]
[423147929,1779892298000,-1587.74,0.00039452,7]
[423147918,1779892298000,-254.0,0.00039449,120]
[423147967,1779892299000,-187.442691,0.00031759,7]
[423147965,1779892299000,-43.44985083,0.00029538,7]
[423147972,1779892299000,-233.601313,0.00038356,30]
[423147975,1779892299000,-36172.48549557,0.00039528,30]
[423147973,1779892299000,-233.601313,0.00038356,30]
[423147976,1779892299000,-877.19,0.00014999,2]
[423147980,1779892299000,-1655.35490122,0.00039528,30]
[423147981,1779892299000,-414358.13074346,0.00039528,30]
[423147977,1779892299000,-233.601313,0.00038356,30]
[423147979,1779892299000,-1151.15977822,0.00039528,30]
[423147978,1779892299000,-5100.0171644,0.00039528,30]
[423147971,1779892299000,-187.442691,0.00035911,7]
[423147974,1779892299000,-233.601313,0.00038356,30]
[423147969,1779892299000,-225.27333345,0.00035586,2]
[423147959,1779892299000,-3322.01297096,0.00039528,30]
[423147966,1779892299000,-178.04024228,0.00031309,2]
[423147964,1779892299000,-143.99284017,0.00029538,7]
[423147963,1779892299000,-187.442691,0.00015,2]
[423147962,1779892299000,-877.19,0.00014999,2]
[423147961,1779892299000,-512.93327991,0.00039528,30]
[423147960,1779892299000,-6039.47747171,0.00039528,30]
[423147957,1779892299000,-284.22019121,0.00039528,30]
[423147953,1779892299000,-57.39631745,0.00038356,30]
[423147982,1779892299000,-877.19,0.00014999,2]
[423147955,1779892299000,-7323.79500445,0.00039528,30]
[423147958,1779892299000,-1099.80980304,0.00039528,30]
[423147954,1779892299000,-176.20499555,0.00038356,30]
[423147956,1779892299000,-1429.0397393,0.00039528,30]
[423147968,1779892299000,-74.72666655,0.00035586,2]
[423147984,1779892299000,-233.601305,0.00038356,30]
[423147970,1779892299000,-187.442691,0.00035586,7]
[423147987,1779892299000,-750.0,0.00039528,30]
[423147983,1779892299000,-187.442691,0.00031759,7]
[423148014,1779892299000,-589.78132935,0.00039528,30]
[423148011,1779892299000,-187.442695,0.00035911,7]
[423148013,1779892299000,-3126.27402751,0.00039528,30]
[423148012,1779892299000,-737.25166921,0.00039528,30]
[423148010,1779892299000,-187.442691,0.00035911,7]
[423148006,1779892299000,-300.0,0.00035586,2]
[423148007,1779892299000,-300.0,0.00035586,2]
[423148005,1779892299000,-152.0,0.00034549,120]
[423148004,1779892299000,-187.442691,0.00031759,7]
[423148009,1779892299000,-187.442691,0.00035586,7]
[423148003,1779892299000,-187.442691,0.00029538,7]
[423148002,1779892299000,-450.00003,0.00025082,2]
[423147998,1779892299000,-877.19,0.00014999,2]
[423147999,1779892299000,-877.19,0.00014999,2]
[423148008,1779892299000,-187.442691,0.00035586,7]
[423148001,1779892299000,-533.09571365,0.00019999,2]
[423147985,1779892299000,-9342314.95082359,0.00039528,30]
[423147986,1779892299000,-431.9360096,0.00039528,30]
[423147988,1779892299000,-357.2564136,0.00014999,2]
[423148000,1779892299000,-187.442691,0.00015,2]
[423147993,1779892299000,-877.19,0.00014999,2]
[423147990,1779892299000,-877.19,0.00014999,2]
[423147992,1779892299000,-619.15142176,0.00014999,2]
[423147991,1779892299000,-258.03857824,0.00014999,2]
[423147989,1779892299000,-519.9335864,0.00014999,2]
[423147994,1779892299000,-877.19,0.00014999,2]
[423147995,1779892299000,-877.19,0.00014999,2]
[423148015,1779892299000,-851.12542639,0.00039528,30]
[423147997,1779892299000,-877.19,0.00014999,2]
[423147996,1779892299000,-877.19,0.00014999,2]
[423148017,1779892300000,-432.80221662,0.00014999,2]
[423148019,1779892300000,-300.0,0.00035586,2]
[423148016,1779892300000,-444.38778338,0.00014999,2]
[423148018,1779892300000,-877.19,0.00014999,2]
[423148023,1779892300000,-877.19,0.0003616,2]
[423148020,1779892300000,-484.76763572,0.00035586,2]
[423148022,1779892300000,-877.19,0.0003616,2]
[423148021,1779892300000,-877.19,0.0003591,2]
[423148026,1779892300000,-877.19,0.00036299,2]
[423148024,1779892300000,-877.19,0.00036299,2]
[423148027,1779892300000,-889.0,0.00036937,2]
[423148028,1779892300000,-7397.86814359,0.00039528,30]
[423148029,1779892300000,-3746.09988,0.00039528,30]
[423148030,1779892300000,-6.00823753,0.00039528,30]
[423148032,1779892300000,-877.19,0.00036299,2]
[423148031,1779892300000,-925.83147084,0.00039528,30]
[423148033,1779892300000,-1122.80998454,0.00039528,30]
[423148025,1779892300000,-877.19,0.00036299,2]
[423148035,1779892457000,479.22111335,9.32e-05,2]
[423148034,1779892457000,479.22111335,9.32e-05,2]
[423148036,1779892458000,479.22111335,9.32e-05,2]
[423148037,1779892458000,479.22111335,9.32e-05,2]
[423148039,1779892458000,16402.0,9.338e-05,2]
[423148040,1779892458000,300.0,8.475e-05,2]
[423148038,1779892458000,4896.1155466,9.32e-05,2]
[423148042,1779892458000,420.0,9.322e-05,2]
[423148043,1779892458000,16894.0,9.375e-05,2]
[423148044,1779892458000,587.0,0.00010255,2]
[423148045,1779892458000,280.20867475,7.086e-05,2]
[423148041,1779892458000,8955.0,9.357e-05,2]
[423148048,1779892459000,250.0,6.861e-05,2]
[423148047,1779892459000,250.0,6.473e-05,2]
[423148046,1779892459000,250.0,7.086e-05,2]
[423148049,1779892617000,150.0,0.00013316,120]
[423148050,1779892618000,250.0,8.915e-05,2]
[423148051,1779892619000,-529.55,0.0001128,2]
[423148054,1779892619000,-529.55,0.00011372,2]
[423148053,1779892619000,-236.1,0.00011795,2]
[423148052,1779892619000,-293.45,0.0001128,2]
[423148056,1779892620000,-529.55,0.00011372,2]
[423148055,1779892620000,-529.55,0.00011372,2]
[423148059,1779892621000,150.0,6.694e-05,2]
[423148057,1779892621000,150.0,6.564e-05,2]